[Event "7th Sharjah Masters 2024"]
[Site "Sharjah"]
[Date "2024.05.14"]
[Round "1.1"]
[White "Erigaisi Arjun"]
[Black "Safarli, Eltaj"]
[Result "1-0"]
[ECO "B92"]
[WhiteElo "2762"]
[BlackElo "2597"]
[Annotator "TA"]
[PlyCount "89"]
[EventDate "2024.05.13"]
[EventType "swiss"]
[EventCountry "UAE"]
[SourceTitle "playchess.com"]
[Source "ChessBase"]
[SourceQuality "1"]
[TimeControl "5400+30"]

{[%evp 20,89,1,0,12,13,31,27,29,22,46,39,64,68,112,100,179,182,162,164,183,173,172,164,181,181,146,162,151,159,225,156,155,163,307,299,279,309,308,298,284,231,222,223,231,223,300,256,291,288,264,234,267,279,277,270,497,512,492,477,910,939,970,1022,2789,1616,1713,1666,1497,779,5081,5073]} 1. e4 {[%emt 0:00:08]} c5 {[%emt 0:00:06]} 2. Nf3 {[%emt 0:00:06][%cal Bg1f3,Bf3d4,Bd4b3,Bb3a5][%mdl 32]} d6 {[%emt 0:00:11]} 3. d4 {[%emt 0:00:06]} cxd4 {[%emt 0:00:07]} 4. Nxd4 {[%emt 0:00:05]} Nf6 {[%emt 0:00:06]} 5. Nc3 {[%emt 0:00:06]} a6 {[%emt 0:00:05]} 6. Be2 {[%emt 0:00:06]} e5 {[%emt 0:00:19]} 7. Nb3 {[%emt 0:00:06]} Be7 {[%emt 0:00:07]} 8. Be3 {[%emt 0:00:05]} Be6 {[%emt 0:01:35]} 9. Nd5 {[%emt 0:00:07]} Nxd5 {[%emt 0:03:05]} 10. exd5 {[%emt 0:01:02]} Bf5 {[%emt 0:01:39]} 11. Qd2 {[%emt 0:00:21]} Nd7 {[%emt 0:01:08]} 12. Na5 {[%emt 0:02:25][%cal Oc2c4]} Qc7 {[%emt 0:04:54]} 13. c4 {[%emt 0:00:09]} O-O {[%emt 0:01:29] White has an edge.} 14. O-O {[%emt 0:05:50]} Bg6 {[%emt 0:02:35]} 15. b4 {[%emt 0:05:04][%cal Oc4c5]} f5 {[%emt 0:02:29] Threatens to win with ...f4.} 16. f4 {[%emt 0:02:29]} Nf6 {[%emt 0:17:36] [#]} 17. fxe5 $1 {[%emt 0:16:50]} Ne4 {[%emt 0:00:51]} (17... dxe5 $16 18. c5 f4) 18. Qe1 $18 {[%emt 0:01:38]} dxe5 {[%emt 0:05:00]} 19. c5 {[%emt 0:00:51]} Bf6 {[%emt 0:01:41]} 20. d6 {[%emt 0:00:50]} Qd7 {[%emt 0:00:07]} 21. Nc4 {[%emt 0:02:47] Hoping for Nb6.} Rae8 {[%emt 0:04:25]} 22. Nb6 {[%emt 0:00:17]} Qd8 {[%emt 0:01:24]} 23. d7 {[%emt 0:10:57] White has more active pieces.} Re7 {[%emt 0:00:33]} 24. Rd1 $36 {[%emt 0:00:06][%mdl 2048] Black must now prevent Bf3. Black is under strong pressure.} Kh8 {[%emt 0:01:37]} (24... f4 $16) 25. Bd3 {[%emt 0:03:53] Bxe4 is the strong threat.} f4 {[%emt 0:09:10]} 26. Bc1 {[%emt 0:00:18]} Ng5 {[%emt 0:01:27]} (26... Nc3 {keeps fighting.}) 27. Bxg6 {[%emt 0:00:08]} hxg6 {[%emt 0:00:04]} 28. Qh4+ {[%emt 0:12:57]} Nh7 {[%emt 0:05:09]} 29. Qg4 {[%emt 0:00:07]} g5 {[%emt 0:00:17]} 30. Nc8 {[%emt 0:00:16]} Rxd7 {[%emt 0:04:33]} 31. Qxd7 {[%emt 0:01:37]} Qxc8 {[%emt 0:00:15]} 32. Rfe1 {[%emt 0:03:45]} a5 {[%emt 0:02:36]} 33. a3 {[%emt 0:01:09]} (33. bxa5 Qxc5+ 34. Kh1 Qxa5 $14) 33... axb4 {[%emt 0:00:28]} 34. axb4 {[%emt 0:00:04]} Qa8 {[%emt 0:00:55]} 35. h3 {[%emt 0:03:59][%cal Bh2h3,Bh3g4][%mdl 32]} Re8 {[%emt 0:01:52]} 36. Qd5 {[%emt 0:02:15]} Nf8 {[%emt 0:06:46]} 37. Bb2 {[%emt 0:01:55][%cal Rb2e5]} Qa4 $2 {[%emt 0:03:01] [#]} (37... Ng6 {might work better.} 38. Bc3 Kh7) 38. Qxb7 {[%emt 0:01:53] White is clearly winning.} (38. Bxe5 Rxe5 39. Rxe5 (39. Qxb7 Re7 $17) 39... Bxe5 $11) 38... g4 {[%emt 0:02:31]} 39. hxg4 {[%emt 0:00:58]} Qc2 {[%emt 0:00:42]} (39... Bh4 $142 40. Qe4 (40. Bxe5 Rxe5 41. Rf1 Kh7 $16) 40... Bxe1 41. Rxe1 Kg8 42. Qc4+ (42. Bxe5 Qa2 $18) 42... Re6) 40. Qf7 {[%emt 0:02:27]} f3 {[%emt 0:04:29]} 41. gxf3 {[%emt 0:00:10]} (41. Qxe8 $2 Qxg2#) 41... Bh4 {[%emt 0:00:30]} 42. Qh5+ {[%emt 0:00:36]} (42. Qxe8 {gets mated.} Qf2+ 43. Kh1 Qxf3+ 44. Kh2 Bg3+ 45. Kh3 Bf4+ (45... Bxe1+ {is a self mate.} 46. Kh2 Bg3+ 47. Kh3 Bf2+ 48. Kh2 Qg3+ 49. Kh1 Qh3#) 46. Kh4 g5+ 47. Kh5 Qh3#) 42... Kg8 {[%emt 0:00:05]} 43. Qxh4 {[%emt 0:00:05]} Qxb2 {[%emt 0:00:04]} 44. Qf2 {[%emt 0:03:43]} Qxb4 {[%emt 0:00:12]} 45. Qa2+ {[%emt 0:00:08] Weighted Error Value: White=0.11 (very precise) /Black=0.35.  Mistake:       	---       	Black=5      Inaccurate:     	White=1     	Black=2      OK:         	White=15    	Black=11     Best:        	White=3     	Black=1      Strong:       	White=1     	---} 1-0

[Event "7th Sharjah Masters 2024"]
[Site "Sharjah"]
[Date "2024.05.14"]
[Round "1.2"]
[White "Vokhidov, Shamsiddin"]
[Black "Maghsoodloo, Parham"]
[Result "1/2-1/2"]
[ECO "B12"]
[WhiteElo "2592"]
[BlackElo "2733"]
[Annotator "TA"]
[PlyCount "60"]
[EventDate "2024.05.13"]
[EventType "swiss"]
[EventCountry "UAE"]
[SourceTitle "playchess.com"]
[Source "ChessBase"]
[SourceQuality "1"]
[TimeControl "5400+30"]

{[%evp 9,60,10,12,14,15,8,14,0,4,-4,18,0,11,-6,1,-10,-5,-10,-12,-11,-8,-29,2,7,13,13,25,18,11,2,6,2,5,4,6,6,8,-61,0,0,0,0,0,0,0,0,0,0,0,0,0,0,0]} 1. e4 {[%emt 0:00:10][%cal Be2e4,Be4e5][%mdl 32]} c6 {[%emt 0:00:25]} 2. d4 {[%emt 0:00:53]} d5 {[%emt 0:00:09]} 3. e5 {[%emt 0:00:03]} Bf5 {[%emt 0:00:27]} 4. h4 {[%emt 0:00:06]} h5 {[%emt 0:00:09]} 5. Bd3 {[%emt 0:00:07]} Bxd3 {[%emt 0:00:08]} 6. Qxd3 {[%emt 0:00:02][%cal Oe5e6]} Qa5+ {[%emt 0:00:10]} 7. Nd2 {[%emt 0:00:14][%cal Oe5e6] e6! would now be deadly.} e6 {[%emt 0:00:10]} 8. Ngf3 {[%emt 0:00:05]} Qa6 {[%emt 0:00:07]} 9. c4 {[%emt 0:01:44]} Bb4 {[%emt 0:00:08]} 10. O-O {[%emt 0:02:20]} Ne7 {[%emt 0:02:35]} 11. b3 {[%emt 0:04:45]} c5 {[%emt 0:00:56]} 12. Bb2 {[%emt 0:07:29]} cxd4 $1 {[%emt 0:01:30]} 13. Nxd4 {[%emt 1:19:02]} Nbc6 {[%emt 0:01:31]} 14. Nxc6 {[%emt 0:00:00]} Nxc6 {[%emt 0:14:38]} 15. Rfd1 {[%emt 0:00:00]} O-O {[%emt 0:03:37]} 16. Qf3 $1 {[%emt 0:00:00]} Qa5 {[%emt 0:10:48]} (16... Rfd8 {looks sharper.} 17. cxd5 Rxd5 18. Ne4 Nxe5 19. Nf6+ gxf6 20. Qxf6 Rxd1+ 21. Rxd1 Qe2) 17. cxd5 {[%emt 0:00:00]} exd5 {[%emt 0:00:09][%cal Be6d5,Bd5d4,Bd4c3][%mdl 32]} 18. Nf1 {[%emt 0:00:00]} d4 {[%emt 0:01:59]} 19. Qxh5 {[%emt 0:00:00][%cal Of1g3]} (19. Bxd4 {simplifies} Rad8 20. Bb2 Rxd1 21. Qxd1 Bc3 22. Bxc3 Qxc3 23. e6) 19... Bc3 {[%emt 0:22:39]} 20. Bxc3 {[%emt 0:00:00]} dxc3 {[%emt 0:00:42]} 21. Ne3 {[%emt 0:00:00]} Rad8 {[%emt 0:02:56] Inhibits Rd5.} 22. Qg5 {[%emt 0:00:00]} Rfe8 {[%emt 0:14:18][%cal Bf8e8,Be8d8,Bd8d7][%mdl 32]} (22... Nxe5 $2 23. Nf5 g6 24. Nh6+ Kg7 25. Ng4 $18) (22... Qxe5 23. Qxe5 Nxe5 24. Rac1 $15) 23. Ng4 {[%emt 0:00:00]} (23. Rxd8 $11 Rxd8 24. Rc1) 23... Rxd1+ {[%emt 0:06:13]} ({Black should play} 23... Kf8 $1 $15 24. Rdc1 Re6 (24... Nxe5 25. b4 $11)) 24. Rxd1 $11 {[%emt 0:00:00] [#] And now Nf6+ would win. The position is equal.} Kf8 {[%emt 0:04:39]} 25. Nf6 {[%emt 0:00:00]} Rd8 {[%emt 0:00:06]} (25... gxf6 $2 {loses.} 26. Qh6+ Ke7 27. Qxf6+ Kf8 28. Rd7 $18) 26. Nd7+ {[%emt 0:00:00]} Ke8 {[%emt 0:02:05]} 27. Qxg7 $1 {[%emt 0:00:00][%csl Gd7][%cal Rg7f8]} Rxd7 {[%emt 0:00:05]} 28. Qh8+ {[%emt 0:00:00]} Ke7 {[%emt 0:00:03]} 29. Qf6+ {[%emt 0:00:00]} Ke8 {[%emt 0:00:03]} 30. Qh8+ {[%emt 0:00:00]} Ke7 {[%emt 0:00:38] Not much happened in this game.   Weighted Error Value: White=0.08 (flawless) /Black=0.06 (flawless) .  Mistake:       	White=1     	Black=1      Inaccurate:     	---       	Black=1      OK:         	White=9     	Black=11     Best:        	White=2     	Black=4      Strong:       	White=2     	Black=1} 1/2-1/2

[Event "7th Sharjah Masters 2024"]
[Site "Sharjah"]
[Date "2024.05.14"]
[Round "1.3"]
[White "Yu, Yangyi"]
[Black "Nesterov, Arseniy"]
[Result "1/2-1/2"]
[ECO "D35"]
[WhiteElo "2729"]
[BlackElo "2590"]
[Annotator "TA"]
[PlyCount "129"]
[EventDate "2024.05.13"]
[EventType "swiss"]
[EventCountry "UAE"]
[SourceTitle "playchess.com"]
[Source "ChessBase"]
[SourceQuality "1"]
[TimeControl "5400+30"]

{[%evp 41,129,0,0,0,12,11,12,15,16,6,8,8,9,12,8,15,14,11,60,8,50,49,50,34,34,0,50,50,56,62,53,50,98,0,6,0,0,0,0,0,0,0,0,0,0,0,0,0,0,0,0,0,0,0,0,0,0,0,0,0,0,0,0,0,0,0,0,0,0,0,0,0,0,0,0,0,0,0,0,0,0,0,0,0,0,0,0,0,0,0]} 1. d4 {[%emt 0:00:05]} d5 {[%emt 0:00:24]} 2. c4 {[%emt 0:00:10]} e6 {[%emt 0:00:05]} 3. Nc3 {[%emt 0:00:16]} Nf6 {[%emt 0:00:15]} 4. cxd5 {[%emt 0:00:43]} exd5 {[%emt 0:00:06]} 5. Bg5 {[%emt 0:00:16]} c6 {[%emt 0:01:04]} 6. e3 {[%emt 0:02:41]} Be7 {[%emt 0:00:14]} 7. Bd3 {[%emt 0:00:35]} O-O {[%emt 0:00:28]} 8. Nf3 {[%emt 0:05:21]} Re8 {[%emt 0:03:58]} 9. h3 {[%emt 0:04:56]} Ne4 {[%emt 0:18:21]} 10. Bf4 {[%emt 0:04:35]} Bd6 {[%emt 0:07:39]} 11. Ne5 {[%emt 0:03:17]} Bf5 {[%emt 0:10:35]} 12. Bxe4 {[%emt 0:04:29]} Bxe4 {[%emt 0:01:39]} 13. Nxe4 {[%emt 0:04:24]} dxe4 {[%emt 0:01:45]} 14. O-O {[%emt 0:00:40]} Bxe5 {[%emt 0:10:24]} 15. dxe5 {[%emt 0:00:43]} Na6 {[%emt 0:04:04]} 16. Rc1 {[%emt 0:02:49]} Qxd1 {[%emt 0:08:14]} 17. Rfxd1 {[%emt 0:00:32]} Rad8 {[%emt 0:00:09]} 18. Rd6 {[%emt 0:01:39]} Rxd6 {[%emt 0:02:35]} 19. exd6 {[%emt 0:00:34]} Nb8 {[%emt 0:00:47]} 20. a4 {[%emt 0:10:39]} Nd7 {[%emt 0:08:32]} 21. a5 {[%emt 0:00:20]} c5 {[%emt 0:00:09]} 22. b4 {[%emt 0:10:39]} Rc8 {[%emt 0:04:00]} 23. bxc5 {[%emt 0:02:25]} Rxc5 {[%emt 0:00:22]} 24. Rb1 {[%emt 0:00:03]} b6 {[%emt 0:00:04]} 25. axb6 {[%emt 0:00:08]} axb6 {[%emt 0:00:03]} 26. g4 {[%emt 0:00:25]} g6 {[%emt 0:08:48]} 27. g5 {[%emt 0:00:48]} h6 {[%emt 0:00:11]} 28. h4 {[%emt 0:01:45]} (28. gxh6 $5 g5 $8 29. Bg3 $14) 28... hxg5 {[%emt 0:00:04]} 29. hxg5 {[%emt 0:00:04]} Rd5 {[%emt 0:02:16]} (29... b5 $1 $11) 30. Kg2 {[%emt 0:04:52]} (30. Rb4 $14) 30... Kf8 {[%emt 0:04:42]} 31. Rb4 {[%emt 0:01:26]} Nc5 {[%emt 0:00:06]} 32. Rxb6 {[%emt 0:01:14]} Ne6 {[%emt 0:00:07]} 33. Kg3 {[%emt 0:01:17]} (33. Rb8+ {simplifies} Kg7 34. Re8 Nxf4+ 35. exf4 Rxd6 36. Rxe4 f6 37. Kf3) 33... Ke8 {[%emt 0:01:20]} (33... Nxg5 $11 34. Bxg5 Rxg5+ 35. Kf4 Rf5+ 36. Kxe4 Ke8) 34. Kg4 $14 {[%emt 0:04:42]} Kd7 {[%emt 0:00:19]} 35. Rb7+ {[%emt 0:10:33]} (35. Rb4 {simplifies} Nxf4 36. exf4 Kxd6 37. Rxe4 Rd2 38. Kf3) 35... Ke8 {[%emt 0:00:04]} 36. Ra7 {[%emt 0:06:48]} Nxf4 {[%emt 0:03:24]} (36... Rf5 $1 $14) 37. d7+ {[%emt 0:00:01]} (37. exf4 Rxd6 38. Ra2 Rd1) (37. Kxf4 $16 {Threatens to win with Re7+.} Rxd6 38. Ra8+ (38. Kxe4 Rb6 $11) 38... Ke7 39. Ra7+ (39. Kxe4 Re6+ 40. Kd3 Rd6+ 41. Ke4 Rb6 $11) 39... Ke8 40. Ra8+ (40. Kxe4 Rb6 $11) 40... Ke7 41. Ra4 (41. Kxe4 Rd2 $11)) 37... Ke7 {[%emt 0:00:07]} (37... Rxd7 $2 {loses.} 38. Rxd7 Nd3 39. Rd4 Nxf2+ 40. Kg3 $18) 38. Kxf4 {[%emt 0:00:04]} Rf5+ {[%emt 0:00:05]} 39. Kxe4 {[%emt 0:00:04]} Rxf2 {[%emt 0:00:05]} 40. Kd5 {[%emt 0:00:26]} Rg2 {[%emt 0:01:24]} 41. d8=Q+ {[%emt 0:13:32]} Kxd8 {[%emt 0:00:06]} 42. Rxf7 {[%emt 0:00:00]} (42. Kd6 $5 Rd2+ $8 43. Ke5 $11) 42... Rxg5+ {[%emt 0:00:25]} 43. Ke6 {[%emt 0:00:00]} (43. Kd6 $5 Ke8 $8 44. Rc7 $11) 43... Rg4 {[%emt 0:00:11]} 44. Rf4 {[%emt 0:00:00]} Rg3 {[%emt 0:00:37]} 45. Rf8+ {[%emt 0:00:00]} Kc7 {[%emt 0:00:09]} 46. e4 {[%emt 0:00:00]} g5 {[%emt 0:00:56]} 47. e5 {[%emt 0:00:00]} g4 {[%emt 0:00:21]} 48. Ke7 {[%emt 0:00:00]} Re3 {[%emt 0:00:32]} 49. e6 {[%emt 0:00:00]} g3 {[%emt 0:00:14]} 50. Rg8 {[%emt 0:00:00]} Kc6 {[%emt 0:00:42]} 51. Rg5 {[%emt 0:00:00]} Kc7 {[%emt 0:00:03]} 52. Rg6 {[%emt 0:00:00]} Kc6 {[%emt 0:00:07]} 53. Kd8 {[%emt 0:00:00]} Rd3+ {[%emt 0:01:03]} 54. Ke8 {[%emt 0:00:00]} Re3 {[%emt 0:02:20]} 55. e7+ {[%emt 0:00:00]} Kc7 {[%emt 0:00:02]} 56. Rg7 {[%emt 0:01:02]} (56. Kf8 $5 Rf3+ $8 57. Ke8 $11) 56... Rf3 {[%emt 0:00:10]} 57. Rg8 {[%emt 0:00:31]} Re3 {[%emt 0:01:27]} 58. Rg6 {[%emt 0:00:07]} (58. Kf7 $5 Rf3+ $8 59. Ke8 $11) 58... Rf3 {[%emt 0:00:06]} 59. Rg7 {[%emt 0:00:04]} Re3 {[%emt 0:00:29]} 60. Rg4 {[%emt 0:04:17]} (60. Kf8 $5 Rf3+ $8 61. Ke8 $11) 60... Rc3 {[%emt 0:00:47]} 61. Rg5 {[%emt 0:02:07]} (61. Kf7 $5 Rf3+ $8 62. Ke8 $11) 61... Re3 {[%emt 0:00:23]} 62. Rg6 {[%emt 0:00:16]} (62. Kf8 $5 Rf3+ $8 63. Ke8 $11) 62... Rf3 {[%emt 0:00:14]} 63. Rg8 {[%emt 0:00:13]} Re3 {[%emt 0:00:33]} 64. Kf8 {[%emt 0:01:31]} (64. Kf7 $5 Rf3+ $8 65. Ke8 $11) 64... Rf3+ $1 {[%emt 0:00:11]} 65. Ke8 {[%emt 0:00:25]} (65. Kg7 $5 g2 $8 66. Rc8+ Kd6 (66... Kxc8 $2 {perishes.} 67. e8=Q+ Kc7 68. Qg6 $18) 67. e8=Q g1=Q+ 68. Qg6+ Qxg6+ 69. Kxg6 $11) 1/2-1/2

[Event "7th Sharjah Masters 2024"]
[Site "Sharjah"]
[Date "2024.05.14"]
[Round "1.4"]
[White "Sethuraman, S.P."]
[Black "Radjabov, Teimour"]
[Result "1/2-1/2"]
[ECO "C49"]
[WhiteElo "2593"]
[BlackElo "2723"]
[Annotator "TA"]
[PlyCount "62"]
[EventDate "2024.05.13"]
[EventType "swiss"]
[EventCountry "UAE"]
[SourceTitle "playchess.com"]
[Source "ChessBase"]
[SourceQuality "1"]
[TimeControl "5400+30"]

{[%evp 16,62,14,21,25,15,10,0,0,9,0,3,12,12,13,0,2,0,0,0,9,2,6,0,10,16,14,6,32,-16,0,-38,-37,-96,-8,-9,-10,-18,-8,-14,0,0,0,0,0,-8,0,0,0]} 1. e4 {[%emt 0:00:17]} e5 {[%emt 0:00:08]} 2. Nf3 {[%emt 0:00:07]} Nc6 {[%emt 0:00:05]} 3. Nc3 {[%emt 0:00:16]} Nf6 {[%emt 0:00:22]} 4. Bb5 {[%emt 0:00:10]} Bb4 {[%emt 0:05:59]} 5. O-O {[%emt 0:00:23]} O-O {[%emt 0:00:16]} 6. d3 {[%emt 0:00:09]} Bxc3 {[%emt 0:02:01]} 7. bxc3 {[%emt 0:00:09]} d6 {[%emt 0:00:08]} 8. Bg5 {[%emt 0:02:00]} Qe7 {[%emt 0:00:33]} 9. Re1 {[%emt 0:05:13]} a6 {[%emt 0:03:42]} 10. Bxc6 {[%emt 0:12:09]} bxc6 {[%emt 0:00:13]} 11. Nd2 {[%emt 0:01:43]} h6 {[%emt 0:03:49]} 12. Bh4 {[%emt 0:00:07]} g5 {[%emt 0:15:24]} 13. Bg3 {[%emt 0:00:20]} Bg4 {[%emt 0:00:52]} 14. f3 {[%emt 0:02:10]} Be6 {[%emt 0:01:53]} 15. d4 {[%emt 0:00:48]} Nh5 {[%emt 0:04:59]} 16. Bf2 {[%emt 0:01:02]} Nf4 {[%emt 0:03:31]} 17. Nb3 {[%emt 0:06:02]} f6 {[%emt 0:07:13]} 18. Na5 {[%emt 0:02:02]} Qd7 {[%emt 0:06:43][%cal Oc6c5]} 19. Be3 {[%emt 0:04:26]} c5 {[%emt 0:21:10]} 20. a4 {[%emt 0:13:25]} cxd4 {[%emt 0:01:02]} 21. cxd4 {[%emt 0:00:06]} Ng6 {[%emt 0:00:05]} 22. c3 {[%emt 0:15:54]} (22. d5 $14 {is more appropriate.} Bf7 23. Qd3) 22... f5 $11 {[%emt 0:04:01]} 23. dxe5 {[%emt 0:11:43]} (23. d5 $5 Bf7 $8 24. exf5 Qxf5 25. Nc6 $11) 23... f4 {[%emt 0:03:34]} 24. Bd4 {[%emt 0:03:41]} ({Better is} 24. Bf2 $15) 24... dxe5 {[%emt 0:01:10]} ({Inferior is} 24... Nxe5 25. Bxe5 dxe5 26. Qxd7 Bxd7 27. Red1 $16) (24... c5 $17 25. exd6 cxd4 26. Qxd4 Qg7 27. Qxg7+ Kxg7) 25. Bc5 {[%emt 0:00:08] [#] Hoping for Qxd7. The position is equal.} Rf7 {[%emt 0:01:57]} 26. Qxd7 {[%emt 0:00:54]} Rxd7 {[%emt 0:01:31]} 27. Nc6 {[%emt 0:01:11]} Rd2 {[%emt 0:03:08]} 28. Red1 {[%emt 0:00:47]} Rc2 {[%emt 0:00:39][%cal Og5g4]} 29. Rdc1 {[%emt 0:04:28]} Rxc1+ {[%emt 0:02:49]} 30. Rxc1 {[%emt 0:00:06]} Bd7 {[%emt 0:00:04]} 31. Nb4 {[%emt 0:00:15]} Bxa4 {[%emt 0:00:44] Weighted Error Value: White=0.10 (very precise) /Black=0.09 (flawless) .  Mistake:       	White=2     	Black=1      Inaccurate:     	White=1     	Black=1      OK:         	White=10    	Black=12} 1/2-1/2

[Event "7th Sharjah Masters 2024"]
[Site "Sharjah"]
[Date "2024.05.14"]
[Round "1.5"]
[White "Tabatabaei, M. Amin"]
[Black "Pranav, V."]
[Result "1-0"]
[ECO "C54"]
[WhiteElo "2707"]
[BlackElo "2587"]
[Annotator "TA"]
[PlyCount "59"]
[EventDate "2024.05.13"]
[EventType "swiss"]
[EventCountry "UAE"]
[SourceTitle "playchess.com"]
[Source "ChessBase"]
[SourceQuality "1"]
[TimeControl "5400+30"]

{[%evp 10,59,22,25,33,12,14,14,17,20,7,6,27,20,10,8,20,-4,29,27,34,27,47,36,36,38,75,68,79,78,120,119,156,110,182,143,145,150,407,406,458,431,435,431,413,366,641,652,819,824,1409,1420]} 1. e4 {[%emt 0:00:01]} e5 {[%emt 0:00:09]} 2. Nf3 {[%emt 0:00:06]} Nc6 {[%emt 0:00:08]} 3. Bc4 {[%emt 0:00:05]} Nf6 {[%emt 0:00:08]} 4. d3 {[%emt 0:00:06]} Bc5 {[%emt 0:00:13]} 5. O-O {[%emt 0:00:30]} d6 {[%emt 0:00:14]} 6. c3 {[%emt 0:00:13]} a5 {[%emt 0:00:26]} 7. Re1 {[%emt 0:00:10]} O-O {[%emt 0:00:07]} 8. h3 {[%emt 0:00:05]} Ba7 {[%emt 0:00:44] The position is equal.} 9. Nbd2 {[%emt 0:00:52][%cal Bb1d2,Bd2f1,Bf1g3][%mdl 32]} Be6 {[%emt 0:02:24]} 10. Bb5 {[%emt 0:00:22][%cal Bc4b5,Bb5a4,Ba4c2][%mdl 32]} Ne7 {[%emt 0:01:37]} 11. Ba4 {[%emt 0:04:20]} Ng6 {[%emt 0:02:00][%cal Oe6h3]} 12. d4 {[%emt 0:05:33]} c6 {[%emt 0:03:07]} (12... Nh5 {is more complex.} 13. Nxe5 dxe5 14. Qxh5 exd4 15. Nf3 dxc3 16. bxc3 Qf6) 13. Bc2 {[%emt 0:01:12]} h6 {[%emt 0:03:18]} 14. Nf1 {[%emt 0:00:48]} Re8 {[%emt 0:05:21]} 15. Ng3 {[%emt 0:00:25]} Qc7 {[%emt 0:02:11]} 16. Be3 {[%emt 0:01:16]} Rad8 {[%emt 0:09:13]} 17. Qc1 {[%emt 0:02:49]} b5 {[%emt 0:24:25]} 18. a4 {[%emt 0:05:05]} bxa4 {[%emt 0:02:23]} 19. Rxa4 {[%emt 0:01:21]} c5 {[%emt 0:02:42]} 20. d5 {[%emt 0:01:57]} Bd7 {[%emt 0:00:02][%cal Oc5c4] [#]} 21. c4 {[%emt 0:00:09]} Rb8 {[%emt 0:09:01] [#]} (21... Bxa4 $16 22. Bxa4 Kh7) 22. Nf5 $1 {[%emt 0:04:40][%cal Oe3h6]} Nf4 {[%emt 0:01:27]} (22... Bxf5 23. exf5) 23. Ra3 {[%emt 0:02:28][%cal Of5h6] And now Nxh6+! would win.} Rb4 $2 {[%emt 0:04:53] [#] Black cannot hold the game after this.} (23... Bxf5 $16 {was necessary.} 24. exf5 Qd8 25. Bxf4 exf4) 24. Nxh6+ $1 $18 {[%emt 0:05:28][%mdl 512]} Kf8 {[%emt 0:01:05]} (24... gxh6 25. Bxf4) 25. Bxf4 {[%emt 0:08:00]} exf4 {[%emt 0:00:08]} 26. Qxf4 {[%emt 0:00:06][%cal Of3g5] Strongly threatening Ng5!} Rxc4 {[%emt 0:00:08]} 27. Bb1 {[%emt 0:06:44][%cal Of3g5] Ng5! would now be deadly.} Rb4 $2 {[%emt 0:05:53]} (27... Re5 28. Nxe5 dxe5) 28. Ng5 {[%emt 0:06:55] White is clearly winning.} Re7 {[%emt 0:08:05]} 29. Rg3 {[%emt 0:02:02][%cal Of4f6] Hoping for Qxf6!} c4 {[%emt 0:02:31] [#]} 30. Qxf6 $3 {[%emt 0:00:19][%mdl 512] Weighted Error Value: White=0.05 (flawless) /Black=0.51.  Loses game:     	---       	Black=1      Mistake:       	White=1     	Black=2      Inaccurate:     	---       	Black=3      OK:         	White=11    	Black=7      Best:        	White=3     	---} 1-0